bitfinex/quotes_SOLUSD_20250201
["timestamp","ask_amount","ask_price","bid_price","bid_amount"]
[1738410491983,12.79212063,227.18,227.14,13.41184853]
[1738410492182,12.79212063,227.18,227.14,33.41184853]
[1738410493083,12.79212063,227.19,227.14,33.41184853]
[1738410493612,0.063,227.21,227.17,13.41184853]
[1738410495906,12.79212063,227.19,227.16,13.41184853]
[1738410496495,12.79212063,227.2,227.16,13.41184853]
[1738410496999,12.85512063,227.21,227.16,13.41184853]
[1738410497202,0.063,227.21,227.16,13.41184853]
[1738410497510,0.063,227.21,227.16,26.20396916]
[1738410498006,0.063,227.21,227.17,12.79212063]
[1738410498212,0.063,227.21,227.18,13.41184853]
[1738410499809,0.063,227.21,227.2,13.53733853]
[1738410499987,0.063,227.21,227.2,26.32945916]
[1738410502712,0.063,227.21,227.2,26.45494916]
[1738410504628,0.063,227.21,227.2,26.70592916]
[1738410505298,0.063,227.21,227.2,26.58043916]
[1738410505491,0.063,227.21,227.2,13.53733853]
[1738410505991,0.063,227.21,227.2,26.32945916]
[1738410508523,0.063,227.21,227.2,13.41184853]
[1738410509018,0.063,227.21,227.18,20.0]
[1738410509209,0.063,227.21,227.19,13.41184853]
[1738410510796,0.063,227.21,227.18,13.41184853]
[1738410511095,0.063,227.21,227.18,26.20396916]
[1738410511710,0.063,227.21,227.19,26.20396916]
[1738410511917,0.063,227.21,227.2,12.79212063]
[1738410512114,0.063,227.21,227.2,26.45494916]
[1738410513320,0.063,227.21,227.2,30.85634916]
[1738410513920,0.063,227.21,227.2,30.98183916]
[1738410516518,0.063,227.21,227.2,30.85634916]
[1738410517420,0.063,227.21,227.2,26.45494916]
[1738410519428,0.063,227.21,227.2,13.41184853]
[1738410521013,0.063,227.21,227.2,26.20396916]
[1738410521411,0.063,227.21,227.2,31.10732916]
[1738410521815,0.063,227.21,227.2,30.98183916]
[1738410523109,0.063,227.21,227.2,13.41184853]
[1738410524911,12.85512063,227.21,227.2,13.41184853]
[1738410525831,0.063,227.21,227.2,13.41184853]
[1738410526713,0.063,227.21,227.16,2.9]
[1738410526912,0.063,227.21,227.17,20.0]
[1738410526913,12.85512063,227.21,227.17,20.0]
[1738410528109,12.85512063,227.21,227.18,13.41184853]
[1738410528110,0.063,227.21,227.18,13.41184853]
[1738410531717,0.063,227.21,227.2,13.41184853]
[1738410531913,0.063,227.21,227.2,12.79212063]
[1738410532114,0.063,227.21,227.2,13.41184853]
[1738410533423,0.063,227.21,227.19,13.41184853]
[1738410535137,0.063,227.21,227.19,26.20396916]
[1738410541140,0.063,227.21,227.19,13.41184853]
[1738410547248,0.063,227.21,227.19,21.59928876]
[1738410548519,0.063,227.21,227.2,0.12549]
[1738410548819,0.063,227.21,227.2,22.63595568]
[1738410549224,0.063,227.21,227.2,21.97575876]
[1738410549522,0.063,227.21,227.2,24.60146851]
[1738410550124,0.063,227.21,227.2,29.00286851]
[1738410554843,0.063,227.21,227.2,29.12835851]
[1738410555950,0.063,227.21,227.2,36.00397173]
[1738410556630,0.063,227.21,227.2,37.60977173]
[1738410556831,0.063,227.27,227.26,13.41184853]
[1738410557050,0.063,227.27,227.26,21.59928876]
[1738410557440,0.063,227.27,227.24,8.18744023]
[1738410557647,0.063,227.27,227.21,8.18744023]
[1738410558037,0.063,227.27,227.25,13.41184853]
[1738410561265,0.063,227.27,227.25,17.81214853]
[1738410568489,0.063,227.27,227.25,25.99958876]
[1738410570673,0.063,227.27,227.25,21.59928876]
[1738410572389,0.063,227.27,227.25,13.41184853]
[1738410573292,0.063,227.27,227.25,17.81224853]
[1738410578664,0.063,227.27,227.25,25.99968876]
[1738410580291,0.063,227.27,227.26,21.72477876]
[1738410580586,0.063,227.27,227.26,26.25046876]
[1738410581180,0.063,227.27,227.26,26.37595876]
[1738410581580,0.063,227.27,227.26,28.99971563]
[1738410582801,0.063,227.27,227.26,61.87496655]
[1738410582970,0.063,227.27,227.26,63.38636655]
[1738410583174,0.063,227.27,227.26,64.04613088]
[1738410583987,0.063,227.27,227.26,31.29636996]
[1738410584295,0.063,227.27,227.26,30.63660563]
[1738410584605,0.063,227.27,227.26,33.26562563]
[1738410584895,0.063,227.27,227.26,18.9156054]
[1738410588021,0.063,227.27,227.26,16.0356054]
[1738410588905,0.063,227.27,227.26,13.41184853]
[1738410590899,0.063,227.27,227.26,21.59928876]
[1738410591295,0.063,227.27,227.26,21.85026876]
[1738410591490,0.063,227.27,227.26,21.97575876]
[1738410592202,0.063,227.27,227.26,24.59744525]
[1738410595322,0.063,227.27,227.26,28.99764525]
[1738410596916,0.063,227.27,227.26,61.87289617]
[1738410598838,0.063,227.27,227.26,68.74850939]
[1738410602146,0.063,227.27,227.26,75.63681448]
[1738410602532,0.063,227.27,227.26,42.76156356]
[1738410603256,0.063,227.27,227.26,28.99764525]
[1738410604270,0.063,227.27,227.26,61.74740617]
[1738410604636,0.063,227.27,227.26,68.62728827]
[1738410605059,0.063,227.27,227.26,35.87752735]
[1738410605953,0.063,227.27,227.26,68.62728827]
[1738410606455,0.063,227.27,227.26,61.74740617]
[1738410607229,0.063,227.27,227.26,68.62728827]
[1738410607853,0.063,227.27,227.26,68.75277827]
[1738410608648,0.063,227.3,227.29,33.91380853]
[1738410608849,0.0001,227.3,227.29,42.76097928]
[1738410609752,0.063,227.34,227.33,33.78831853]
[1738410609968,0.063,227.34,227.33,42.10124876]
[1738410610275,0.0001,227.34,227.33,43.87355231]
[1738410610439,0.0001,227.34,227.33,42.76082419]
[1738410611477,0.0001,227.34,227.33,50.87393037]
[1738410612055,0.0001,227.34,227.33,49.78131068]
[1738410612763,0.0001,227.34,227.33,50.85874745]
[1738410613339,0.0001,227.34,227.33,49.78131068]
[1738410613535,0.0001,227.34,227.33,49.12173525]
[1738410615231,0.0001,227.34,227.33,47.22646525]
[1738410615460,0.0001,227.34,227.33,36.03353502]
[1738410615672,0.0001,227.34,227.33,16.03353502]
[1738410616940,0.0001,227.34,227.3,8.18744023]
[1738410618956,0.0001,227.34,227.32,8.18744023]
[1738410619168,0.0001,227.34,227.33,8.18744023]
[1738410621161,0.0001,227.34,227.33,21.59928876]
[1738410621967,0.0001,227.34,227.33,21.72477876]
[1738410622140,0.0001,227.34,227.33,22.10124876]
[1738410625652,0.0001,227.34,227.33,22.76079207]
[1738410630471,0.0001,227.34,227.33,27.15959207]
[1738410631374,0.0001,227.34,227.33,26.50004876]
[1738410633058,0.0001,227.34,227.33,27.1596324]
[1738410635192,0.0001,227.34,227.33,29.41004876]
[1738410635776,0.0001,227.34,227.33,30.06969622]
[1738410636349,0.063,227.43,227.34,13.91380853]
[1738410636350,0.0001,227.35,227.34,13.91380853]
[1738410636544,0.063,227.43,227.41,0.12549]
[1738410636849,0.063,227.43,227.42,21.72477876]
[1738410637684,0.063,227.43,227.42,26.49834876]
[1738410640078,0.063,227.43,227.42,27.15770892]
[1738410641161,0.063,227.43,227.42,26.49834876]
[1738410645074,0.063,227.43,227.42,29.37834876]
[1738410645974,0.063,227.43,227.42,30.03773905]
[1738410652394,0.063,227.43,227.42,29.37834876]
[1738410652773,0.063,227.43,227.42,30.03774736]
[1738410656210,0.03,227.46,227.45,20.50196]
[1738410656370,0.0001,227.46,227.45,42.76043628]
[1738410657101,0.0001,227.46,227.45,158.8101972]
[1738410657320,0.0001,227.46,227.45,163.54750968]
[1738410657893,0.0001,227.46,227.45,162.54750968]
[1738410658092,0.0001,227.46,227.45,163.54750968]
[1738410660827,0.0001,227.46,227.45,164.66004241]
[1738410661130,0.0001,227.46,227.45,108.79774876]
[1738410661288,0.0001,227.46,227.45,26.49774876]
[1738410661489,0.0001,227.46,227.45,13.53733853]
[1738410661716,0.0001,227.46,227.45,20.0]
[1738410662818,0.0001,227.46,227.45,33.41184853]
[1738410666209,0.0001,227.46,227.45,41.59928876]
[1738410667026,0.0001,227.46,227.45,33.41184853]
[1738410667996,0.0001,227.46,227.45,33.53733853]
[1738410668202,0.0001,227.46,227.45,41.97575876]
[1738410669008,0.0001,227.46,227.45,42.10124876]
[1738410669509,0.0001,227.46,227.45,22.10124876]
[1738410669701,0.03,227.49,227.48,20.0]
[1738410669908,0.063,227.5,227.49,18.18401853]
[1738410670507,0.063,227.5,227.49,26.37145876]
[1738410671334,0.063,227.5,227.49,13.53733853]
[1738410671508,0.063,227.5,227.49,13.41184853]
[1738410672731,8.25044023,227.5,227.49,13.41184853]
[1738410673330,0.063,227.5,227.49,13.41184853]
[1738410682545,0.063,227.5,227.49,13.44184853]
[1738410698674,0.063,227.5,227.49,13.56733853]
[1738410709485,0.063,227.5,227.49,17.96303853]
[1738410710681,0.063,227.5,227.49,27.18622496]
[1738410713785,0.063,227.5,227.49,35.14933666]
[1738410716204,0.063,227.5,227.49,117.44933666]
[1738410716393,0.063,227.5,227.49,109.91017836]
[1738410717302,0.063,227.53,227.52,20.50196]
[1738410717601,0.063,227.53,227.52,29.34841128]
[1738410719202,0.063,227.53,227.52,33.74361128]
[1738410720802,0.063,227.53,227.52,47.15545981]
[1738410729707,0.063,227.57,227.56,33.78831853]
[1738410729884,0.063,227.57,227.56,41.97575876]
[1738410730987,0.063,227.57,227.56,46.37015876]
[1738410731417,7.96944023,227.65,227.58,0.12549]
[1738410731610,7.96944023,227.65,227.6,13.53733853]
[1738410731797,8.18744023,227.67,227.6,21.72477876]
[1738410731988,1.9667,227.7,227.58,0.12549]
[1738410731989,8.18744023,227.65,227.58,8.31293023]
[1738410732188,8.18744023,227.65,227.58,11.19293023]
[1738410732391,8.18744023,227.65,227.59,13.53733853]
[1738410733922,8.25044023,227.66,227.59,21.72477876]
[1738410734411,0.063,227.66,227.59,21.72477876]
[1738410735419,0.063,227.66,227.6,8.18744023]
[1738410736698,0.063,227.66,227.6,12.58104023]
[1738410741113,0.063,227.66,227.62,13.41184853]
[1738410742007,0.063,227.66,227.63,0.12549]
[1738410743837,8.25044023,227.66,227.62,0.12549]
[1738410744538,8.25044023,227.66,227.6,0.03]
[1738410744832,8.18744023,227.64,227.6,0.03]
[1738410745629,8.18744023,227.63,227.6,0.03]
[1738410745927,8.18744023,227.62,227.6,0.03]
[1738410746423,8.18744023,227.61,227.6,0.03]
[1738410746729,0.063,227.66,227.6,2.91]
[1738410746908,0.063,227.66,227.65,13.53733853]
[1738410754606,0.063,227.66,227.65,13.78831853]
[1738410755025,0.063,227.66,227.65,21.97575876]
[1738410758120,0.063,227.66,227.65,26.36845876]
[1738410759738,0.063,227.66,227.65,26.49394876]
[1738410766321,0.063,227.66,227.65,26.52394876]
[1738410766938,0.063,227.69,227.68,0.25098]
[1738410767122,0.063,227.69,227.68,8.56391023]
[1738410767440,0.063,227.69,227.68,21.97575876]
[1738410768044,0.063,227.69,227.68,21.72477876]
[1738410770341,0.063,227.69,227.68,13.53733853]
[1738410771543,0.063,227.69,227.68,13.41184853]
[1738410785131,8.25044023,227.69,227.65,0.03]
[1738410785337,8.18744023,227.67,227.65,0.03]
[1738410787853,8.18744023,227.68,227.65,0.03]
[1738410790243,8.18744023,227.67,227.65,0.03]
[1738410790443,8.18744023,227.66,227.65,0.03]
[1738410791265,9.18744023,227.66,227.65,0.03]
[1738410792966,16.50774023,227.66,227.65,0.03]
[1738410794446,15.50774023,227.66,227.65,0.03]
[1738410795145,8.18744023,227.66,227.65,0.03]
[1738410802979,8.25044023,227.66,227.65,0.03]
[1738410806281,0.063,227.66,227.65,0.03]
[1738410809971,8.25044023,227.66,227.65,0.03]
[1738410816697,1.0,227.64,227.6,0.03]
[1738410816892,8.18744023,227.61,227.6,0.03]
[1738410817712,9.18744023,227.61,227.6,0.03]
[1738410820769,10.31293023,227.61,227.6,0.0001]
[1738410823078,8.18744023,227.61,227.6,0.0001]
[1738410837712,8.18744023,227.63,227.6,0.0001]
[1738410838217,8.18744023,227.62,227.6,0.0001]
[1738410838810,8.18744023,227.61,227.6,0.0001]
[1738410839008,9.18744023,227.61,227.6,0.0001]
[1738410843320,8.18744023,227.61,227.6,0.0001]
[1738410844717,9.18744023,227.61,227.6,0.0001]
[1738410845021,8.18744023,227.61,227.6,0.0001]
[1738410848137,9.18744023,227.61,227.6,0.0001]
[1738410849307,8.18744023,227.61,227.6,0.0001]
[1738410849726,8.25044023,227.61,227.6,0.0001]
[1738410852023,8.37593023,227.61,227.6,0.0001]
[1738410852631,9.37593023,227.61,227.6,0.0001]
[1738410853727,42.12569115,227.61,227.6,0.0001]
[1738410854543,9.37593023,227.61,227.6,0.0001]
[1738410855536,42.12569115,227.61,227.6,0.0001]
[1738410856435,9.37593023,227.61,227.6,0.0001]
[1738410858734,42.12569115,227.61,227.6,0.0001]
[1738410860431,22.0,227.58,227.52,1.5576]
[1738410860621,8.18744023,227.53,227.52,1.5576]
[1738410862026,8.18744023,227.53,227.52,1.5876]
[1738410863336,8.18744023,227.53,227.52,0.03]
[1738410865835,21.0,227.51,227.5,0.03]
[1738410866014,30.18744023,227.51,227.49,0.03]
[1738410866220,2.23739413,227.5,227.49,0.03]
[1738410867122,2.36288413,227.5,227.49,0.03]
[1738410869727,3.36288413,227.5,227.49,0.03]
[1738410870729,2.36288413,227.5,227.49,0.03]
[1738410870934,3.36288413,227.5,227.49,0.03]
[1738410871426,2.23739413,227.5,227.49,0.03]
[1738410880534,8.18744023,227.52,227.49,1.6889]
[1738410881225,8.18744023,227.5,227.49,1.6889]
[1738410881753,8.18744023,227.51,227.49,1.6889]
[1738410883844,8.18744023,227.55,227.49,1.6889]
[1738410884043,8.18744023,227.56,227.5,13.41184853]
[1738410884535,8.18744023,227.55,227.5,13.41184853]
[1738410884735,90.78744023,227.55,227.5,13.41184853]
[1738410885321,8.18744023,227.54,227.5,13.41184853]
[1738410885726,8.18744023,227.53,227.49,1.6889]
[1738410888628,82.6,227.52,227.49,1.6889]
[1738410890248,82.6,227.52,227.5,13.41184853]
[1738410903461,0.063,227.53,227.5,13.41184853]
[1738410903462,0.063,227.53,227.5,25.99478876]
[1738410903757,0.063,227.53,227.51,8.18744023]
[1738410903940,8.18744023,227.6,227.56,1.0]
[1738410904141,82.6,227.58,227.56,1.0]
[1738410905063,82.6,227.58,227.57,14.0152083]
[1738410905461,8.18744023,227.62,227.6,1.60335977]
[1738410907355,8.18744023,227.61,227.58,1.60335977]
[1738410907563,8.18744023,227.59,227.58,0.60335977]
[1738410908864,8.18744023,227.59,227.56,3.16625977]
[1738410909065,8.18744023,227.57,227.56,3.16625977]
[1738410909271,8.18744023,227.57,227.56,1.5629]
[1738410909467,8.18744023,227.57,227.53,1.0]
[1738410909670,8.18744023,227.54,227.53,1.0]
[1738410909851,8.18744023,227.54,227.51,1.0]
[1738410910051,8.18744023,227.52,227.5,2.16625977]
[1738410910256,8.18744023,227.51,227.5,2.16625977]
[1738410911769,8.18744023,227.51,227.5,15.5781083]
[1738410912670,8.18744023,227.52,227.5,15.5781083]
[1738410913448,8.18744023,227.53,227.5,15.5781083]
[1738410913647,8.18744023,227.53,227.52,1.0]
[1738410914147,8.18744023,227.53,227.49,0.03]
[1738410914373,8.18744023,227.5,227.49,0.03]
[1738410915075,8.18744023,227.5,227.49,13.44184853]
[1738410917272,8.18744023,227.51,227.49,13.44184853]
[1738410918453,8.18744023,227.5,227.49,0.03]
[1738410924049,8.18744023,227.51,227.49,0.03]
[1738410926075,90.78744023,227.5,227.49,0.03]
[1738410926274,8.18744023,227.5,227.49,0.03]
[1738410927170,8.58408046,227.5,227.43,0.03]
[1738410927349,8.18744023,227.44,227.43,0.03]
[1738410930474,8.18744023,227.46,227.43,0.63335977]
[1738410930678,8.18744023,227.47,227.44,1.0]
[1738410932883,90.78744023,227.48,227.44,1.0]
[1738410933058,82.6,227.48,227.47,1.0]
[1738410934159,82.6,227.48,227.47,1.60335977]
[1738410938976,8.18744023,227.5,227.47,1.60335977]
[1738410940088,8.18744023,227.5,227.49,1.0]
[1738410940884,8.18744023,227.51,227.49,1.0]
[1738410943296,8.18744023,227.5,227.49,1.0]
[1738410943874,8.25044023,227.5,227.45,1.0]
[1738410944066,8.18744023,227.46,227.44,1.6657]
[1738410944373,8.18744023,227.45,227.44,1.6657]
[1738410944775,8.18744023,227.45,227.44,0.03]
[1738410957267,8.18744023,227.46,227.44,0.03]
[1738410957678,8.18744023,227.45,227.44,1.03]
[1738410957881,8.18744023,227.45,227.44,0.03]
[1738410961793,8.18744023,227.46,227.44,1.03]
[1738410961968,8.18744023,227.47,227.44,1.03]
[1738410962476,8.18744023,227.46,227.44,1.03]
[1738410963078,8.18744023,227.45,227.44,1.03]
[1738410966104,8.18744023,227.45,227.44,0.03]
[1738410966280,8.18744023,227.45,227.44,1.03]
[1738410969281,8.18744023,227.45,227.44,0.03]
[1738410969897,8.18744023,227.46,227.45,1.0]
[1738410989206,0.063,227.49,227.48,1.0]
[1738410989518,8.25044023,227.49,227.46,1.0]
[1738410989703,8.18744023,227.47,227.46,1.0]
[1738410991417,8.18744023,227.47,227.45,0.03]
[1738410991596,8.18744023,227.46,227.45,0.03]
[1738410996818,0.063,227.49,227.45,0.03]
[1738410996819,8.18744023,227.47,227.45,0.03]
[1738410996997,8.18744023,227.47,227.46,1.0]
[1738410999605,8.25044023,227.49,227.46,1.0]
[1738410999807,8.18744023,227.47,227.46,1.0]
[1738411011610,8.25044023,227.49,227.46,1.60335977]
[1738411011811,8.25044023,227.49,227.46,0.60335977]
[1738411012038,8.25044023,227.49,227.48,1.0]
[1738411016722,8.25044023,227.49,227.48,1.60335977]
[1738411017334,8.25044023,227.49,227.48,1.0]
[1738411017515,8.25044023,227.49,227.46,1.03]
[1738411017840,8.18744023,227.47,227.46,1.03]
[1738411046677,0.063,227.49,227.48,1.0]
[1738411049862,0.063,227.49,227.48,3.62722393]
[1738411050478,0.063,227.49,227.48,6.91051967]
[1738411051283,0.063,227.49,227.48,1.0]
[1738411051459,8.25044023,227.49,227.48,1.0]
[1738411054988,0.063,227.49,227.48,14.41184853]
[1738411057983,8.25044023,227.49,227.48,14.41184853]
[1738411058401,8.25044023,227.49,227.48,1.0]
[1738411059199,0.063,227.49,227.48,14.41184853]
[1738411061678,0.063,227.49,227.48,18.80774853]
[1738411065215,0.063,227.49,227.48,14.41184853]
[1738411065391,8.25044023,227.49,227.48,14.41184853]
[1738411066212,8.25044023,227.49,227.48,1.0]
[1738411068807,0.063,227.49,227.48,14.41184853]
[1738411069010,0.063,227.49,227.48,18.80774853]
[1738411070111,0.063,227.49,227.48,18.93323853]
[1738411070316,0.063,227.49,227.48,27.12067876]
[1738411071211,0.063,227.49,227.48,18.93323853]
[1738411072517,0.063,227.49,227.48,27.45824868]
[1738411073918,0.063,227.49,227.48,27.48824868]
[1738411074120,0.063,227.5,227.49,18.5363983]
[1738411074294,0.063,227.5,227.49,26.72383853]
[1738411075227,0.063,227.5,227.49,30.00268859]
[1738411076621,82.6,227.57,227.56,1.0]
[1738411076823,82.6,227.57,227.56,15.0152083]
[1738411077601,82.6,227.57,227.56,15.1406983]
[1738411077797,82.6,227.57,227.56,19.5350983]
[1738411078207,8.18744023,227.59,227.57,13.41184853]
[1738411078405,8.18744023,227.59,227.58,1.0]
[1738411078806,8.18744023,227.59,227.58,1.60335977]
[1738411079203,8.18744023,227.59,227.58,15.0152083]
[1738411083540,8.18744023,227.59,227.58,1.60335977]
[1738411083844,8.18744023,227.59,227.58,1.0]
[1738411084744,8.18744023,227.59,227.58,1.60335977]
[1738411086044,8.25044023,227.59,227.58,1.60335977]
[1738411088646,8.25044023,227.59,227.58,1.0]
[1738411089848,8.25044023,227.59,227.58,1.60335977]
[1738411090958,8.25044023,227.59,227.58,1.0]
[1738411097050,0.063,227.59,227.58,21.1164983]
[1738411098665,0.063,227.59,227.58,16.5970083]
[1738411098858,8.25044023,227.59,227.58,1.0]
[1738411111980,0.063,227.59,227.58,15.0152083]
[1738411113295,0.063,227.59,227.58,15.1406983]
[1738411113589,0.063,227.59,227.58,30.02269631]
[1738411114795,0.063,227.59,227.58,33.3020458]
[1738411116486,8.18744023,227.77,227.68,21.0]
[1738411116790,8.18744023,227.79,227.71,1.60335977]
[1738411116957,8.18744023,227.79,227.71,23.32813853]
[1738411117380,8.18744023,227.78,227.71,23.32813853]
[1738411117588,8.18744023,227.78,227.71,27.71963853]
[1738411118159,8.18744023,227.77,227.71,15.0152083]
[1738411118387,8.18744023,227.76,227.71,15.0152083]
[1738411119773,8.18744023,227.76,227.71,18.2808922]
[1738411119971,80.9964,227.87,227.71,18.2808922]
[1738411119972,8.18744023,227.87,227.81,0.60335977]
[1738411120196,8.18744023,227.88,227.81,23.20264853]
[1738411120867,8.18744023,227.85,227.81,1.60335977]
[1738411121385,8.18744023,227.87,227.81,23.20264853]
[1738411122408,8.18744023,227.88,227.81,23.20264853]
[1738411122703,8.18744023,227.87,227.81,23.20264853]
[1738411123006,8.18744023,227.86,227.81,15.0152083]
[1738411123201,8.18744023,227.86,227.81,23.20264853]
[1738411123813,8.18744023,227.87,227.81,23.20264853]
[1738411127935,8.18744023,227.86,227.81,23.20264853]
[1738411128227,8.18744023,227.87,227.81,23.20264853]
[1738411129027,8.18744023,227.96,227.94,1.0]
[1738411129603,8.18744023,227.95,227.94,1.0]
[1738411130207,8.18744023,227.96,227.94,1.0]
[1738411130540,8.18744023,227.97,227.96,1.0]
[1738411130844,8.18744023,227.98,227.96,1.0]
[1738411131127,8.18744023,228.07,228.04,1.0]
[1738411131532,20.0,228.09,228.06,1.0]
[1738411132235,0.12549,228.11,228.06,1.0]
[1738411132538,8.18744023,228.07,228.06,1.0]
[1738411132929,8.21744023,228.07,228.06,1.0]
[1738411134022,8.21744023,228.07,228.03,1.0]
[1738411134232,8.18744023,228.04,228.03,1.0]
[1738411135325,8.18744023,228.04,228.03,1.60335977]
[1738411136724,8.18744023,228.05,228.03,1.60335977]
[1738411137908,8.18744023,228.04,228.03,1.60335977]
[1738411138425,8.18744023,228.04,228.03,1.0]
[1738411141311,8.21744023,228.07,228.06,1.0]
[1738411141507,0.03,228.07,228.06,1.60335977]
[1738411142616,8.21744023,228.07,228.06,1.60335977]
[1738411146451,5.26705857,228.07,228.06,1.60335977]
[1738411147931,5.26705857,228.07,228.06,1.0]
[1738411151731,8.18744023,228.17,228.12,0.60335977]
[1738411151932,8.18744023,228.17,228.16,1.0]
[1738411153042,8.18744023,228.18,228.16,1.60335977]
[1738411153218,32.74976092,228.25,228.18,1.0]
[1738411153424,32.74976092,228.25,228.2,1.0]
[1738411153957,0.39664023,228.24,228.17,1.0]
[1738411154826,8.18744023,228.18,228.17,1.0]
[1738411161829,0.03,228.24,228.23,0.60335977]
[1738411162031,0.03,228.24,228.23,22.20264853]
[1738411163044,0.03,228.24,228.23,0.60335977]
[1738411163440,0.03,228.24,228.23,14.0152083]
[1738411163748,0.03,228.24,228.23,0.60335977]
[1738411163925,12.71058047,228.24,228.22,1.0]
[1738411164129,12.68058047,228.23,228.22,1.0]
[1738411166060,12.68058047,228.23,228.2,1.0]
[1738411166361,12.68058047,228.21,228.2,1.0]
[1738411171059,12.68058047,228.21,228.18,0.6741]
[1738411171272,12.68058047,228.19,228.18,0.6741]
[1738411171564,0.03,228.23,228.18,0.6741]
[1738411171565,12.68058047,228.2,228.18,0.6741]
[1738411171775,12.68058047,228.19,228.18,0.6741]
[1738411173746,12.68058047,228.21,228.2,0.6741]
[1738411180377,12.68058047,228.21,228.18,0.6741]
[1738411180576,12.68058047,228.19,228.18,0.6741]
[1738411180776,12.68058047,228.19,228.18,0.7371]
[1738411183061,12.68058047,228.19,228.18,0.063]
[1738411183270,20.0,228.16,228.12,0.6741]
[1738411183480,12.68058047,228.13,228.12,0.6741]
[1738411183676,12.68058047,228.13,228.1,0.6741]
[1738411183884,12.68058047,228.11,228.1,0.6741]
[1738411186784,12.68058047,228.19,228.18,0.60335977]
[1738411187085,12.68058047,228.19,228.18,1.27745977]
[1738411189303,12.68058047,228.19,228.18,0.6741]
[1738411191870,12.68058047,228.2,228.18,1.27745977]
[1738411192691,12.68058047,228.19,228.18,1.27745977]
[1738411193979,12.68058047,228.19,228.18,1.34045977]
[1738411194278,12.71058047,228.19,228.18,1.34045977]
[1738411197275,0.03,228.19,228.18,1.34045977]
[1738411202876,8.14914551,228.19,228.18,1.34045977]
[1738411203073,8.14914551,228.19,228.18,0.7371]
[1738411203403,8.14914551,228.19,228.18,0.063]
[1738411204599,41.02236778,228.19,228.15,0.6741]
[1738411204905,40.59572755,228.16,228.15,0.6741]
[1738411205493,8.24463551,228.16,228.15,0.6741]
[1738411205694,12.82296893,228.16,228.15,0.6741]
[1738411206000,12.82296893,228.16,228.09,0.6741]
[1738411206001,20.0,228.13,228.09,0.6741]
[1738411206203,12.69747893,228.1,228.09,0.6741]
[1738411206593,12.69747893,228.11,228.09,14.6893083]
[1738411206796,12.69747893,228.11,228.09,1.27745977]
[1738411206980,12.69747893,228.1,228.09,1.27745977]
[1738411208778,12.69747893,228.1,228.09,0.6741]
[1738411208978,12.82296893,228.1,228.09,0.6741]
[1738411210707,12.69747893,228.1,228.08,0.6741]
[1738411210903,12.69747893,228.09,228.08,0.6741]
[1738411214818,12.82296893,228.09,228.08,0.6741]
[1738411217482,12.82296893,228.09,228.08,0.7371]
[1738411218895,13.21960916,228.09,228.02,0.6741]
[1738411219099,12.69747893,228.03,228.02,0.6741]
[1738411220014,12.69747893,228.03,227.98,15.5310083]
[1738411220015,25.39495786,228.03,228.0,0.6741]
[1738411220193,12.69747893,228.01,228.0,0.6741]
[1738411225215,12.69747893,228.01,227.98,0.6741]
[1738411225520,12.69747893,227.99,227.98,0.6741]
[1738411225718,8.13593401,227.99,227.98,0.6741]
[1738411226916,20.12549,227.96,227.95,0.063]
[1738411227091,20.12549,227.96,227.89,0.60335977]
[1738411227092,8.13593401,227.93,227.89,1.27745977]
[1738411227416,8.13593401,227.9,227.87,0.6741]
[1738411227596,8.13593401,227.88,227.87,0.6741]
[1738411229028,8.13593401,227.88,227.86,8.43035977]
[1738411229221,20.39664023,227.95,227.9,0.6741]
[1738411229526,20.0,227.95,227.92,0.6741]
[1738411231425,12.71991808,227.93,227.92,0.6741]
[1738411231717,25.43983616,227.93,227.92,0.6741]
[1738411232432,12.71991808,227.93,227.92,0.6741]
[1738411233306,12.71991808,227.94,227.92,1.27745977]
[1738411233514,12.71991808,227.96,227.94,1.27745977]
[1738411233696,12.71991808,227.99,227.98,1.27745977]